lending/lending_fUSD_20240228
["ID","MTS","AMOUNT","RATE_DAILY","PERIOD"]
[315498051,1709079038758,-567.25030915,0.00023835,2]
[315498052,1709079038767,-500.0,0.00023835,2]
[315498053,1709079038776,-500.0,0.00023835,2]
[315498054,1709079038786,-500.0,0.00023835,2]
[315498055,1709079038795,-500.0,0.00023835,2]
[315498056,1709079038804,-500.0,0.00023835,2]
[315498057,1709079038813,-500.0,0.00023835,2]
[315498058,1709079038822,-500.0,0.00023835,2]
[315498059,1709079038831,-500.0,0.00023835,2]
[315498060,1709079038840,-500.0,0.00023835,2]
[315498061,1709079038850,-500.0,0.00023835,2]
[315498062,1709079038859,-500.0,0.00023835,2]
[315498063,1709079038869,-500.0,0.00023835,2]
[315498064,1709079038878,-500.0,0.00023835,2]
[315498065,1709079038887,-500.0,0.00023835,2]
[315498066,1709079038897,-252.42954584,0.00023835,2]
[315498067,1709079038907,-500.0,0.00023835,2]
[315498068,1709079038917,-500.0,0.00023835,2]
[315498069,1709079038926,-500.0,0.00023835,2]
[315498070,1709079038935,-500.0,0.00023835,2]
[315498071,1709079038945,-559.09097252,0.00023835,2]
[315498072,1709079038955,-502.90998772,0.00023835,2]
[315498073,1709079038965,-500.0,0.00023835,2]
[315498074,1709079038975,-500.0,0.00023835,2]
[315498075,1709079038984,-500.0,0.00023835,2]
[315498076,1709079038993,-500.0,0.00023835,2]
[315498077,1709079039003,-506.43841514,0.00023835,2]
[315498078,1709079039012,-500.0,0.00023835,2]
[315498079,1709079039021,-500.0,0.00023835,2]
[315498080,1709079039031,-500.0,0.00023835,2]
[315498081,1709079039040,-500.0,0.00023835,2]
[315498082,1709079039050,-500.0,0.00023835,2]
[315498083,1709079039059,-500.0,0.00023835,2]
[315498084,1709079039069,-500.0,0.00023835,2]
[315498085,1709079039078,-500.0,0.00023835,2]
[315498086,1709079039087,-500.0,0.00023835,2]
[315498087,1709079039096,-500.0,0.00023835,2]
[315498088,1709079039106,-500.0,0.00023835,2]
[315498089,1709079039117,-500.0,0.00023835,2]
[315498090,1709079039126,-500.0,0.00023835,2]
[315498091,1709079039135,-500.0,0.00023835,2]
[315498092,1709079039144,-500.0,0.00023835,2]
[315498093,1709079039156,-500.0,0.00023835,2]
[315498094,1709079039166,-500.0,0.00023835,2]
[315498095,1709079039175,-500.0,0.00023835,2]
[315498096,1709079039184,-500.0,0.00023835,2]
[315498097,1709079039194,-511.88154928,0.00023835,2]
[315498098,1709079039206,-500.0,0.00023835,2]
[315498099,1709079039216,-500.0,0.00023835,2]
[315498100,1709079039226,-500.0,0.00023835,2]
[315498101,1709079039235,-500.0,0.00023835,2]
[315498102,1709079039246,-500.0,0.00023835,2]
[315498103,1709079039256,-500.0,0.00023835,2]
[315498104,1709079039266,-500.0,0.00023835,2]
[315498105,1709079039276,-500.0,0.00023835,2]
[315498106,1709079039285,-500.0,0.00023835,2]
[315498107,1709079039295,-500.0,0.00023835,2]
[315498108,1709079039305,-500.0,0.00023835,2]
[315498109,1709079039314,-500.0,0.00023835,2]
[315498110,1709079039323,-500.0,0.00023835,2]
[315498111,1709079039333,-500.0,0.00023835,2]
[315498112,1709079039343,-500.0,0.00023835,2]
[315498113,1709079039352,-503.43403529,0.00023835,2]
[315498114,1709079039361,-500.0,0.00023835,2]
[315498115,1709079039506,-500.0,0.00023835,2]
[315498116,1709079039534,-500.0,0.00023835,2]
[315498117,1709079039544,-500.0,0.00023835,2]
[315498118,1709079039554,-500.0,0.00023835,2]
[315498119,1709079039565,-500.0,0.00023835,2]
[315498120,1709079039574,-500.0,0.00023835,2]
[315498121,1709079039583,-500.0,0.00023835,2]
[315498122,1709079039593,-551.65014818,0.00023835,2]
[315498123,1709079039602,-500.0,0.00023835,2]
[315498124,1709079039612,-500.0,0.00023835,2]
[315498125,1709079039623,-500.0,0.00023835,2]
[315498126,1709079039632,-538.13489331,0.00023835,2]
[315498127,1709079039642,-500.0,0.00023835,2]
[315498128,1709079039651,-500.0,0.00023835,2]
[315498129,1709079039661,-500.0,0.00023835,2]
[315498130,1709079039670,-579.15587451,0.00023835,2]
[315498131,1709079039679,-500.0,0.00023835,2]
[315498132,1709079039689,-500.0,0.00023835,2]
[315498133,1709079039698,-500.0,0.00023835,2]
[315498134,1709079039707,-500.0,0.00023835,2]
[315498135,1709079039717,-500.0,0.00023835,2]
[315498136,1709079039726,-500.0,0.00023835,2]
[315498137,1709079039736,-500.0,0.00023835,2]
[315498138,1709079039745,-500.0,0.00023835,2]
[315498139,1709079039755,-500.0,0.00023835,2]
[315498140,1709079039764,-500.0,0.00023835,2]
[315498141,1709079039773,-500.0,0.00023835,2]
[315498142,1709079039783,-500.0,0.00023835,2]
[315498143,1709079039792,-500.0,0.00023835,2]
[315498144,1709079039801,-500.0,0.00023835,2]
[315498145,1709079039810,-500.0,0.00023835,2]
[315498146,1709079039819,-62.527264,0.00023835,2]
[315498147,1709079040049,-437.472736,0.00023835,2]
[315498148,1709079040059,-470.467264,0.00023835,2]
[315498149,1709079040100,-29.532736,0.00023835,2]
[315498150,1709079040110,-500.0,0.00023835,2]
[315498151,1709079040122,-224.13047903,0.00023835,2]
[315498153,1709079040732,-275.86952097,0.00023835,2]
[315498155,1709079040741,-500.0,0.00023835,2]
[315498157,1709079040751,-500.0,0.00023835,2]
[315498159,1709079040760,-500.0,0.00023835,2]
[315498161,1709079040769,-497.3984537,0.00023835,2]
[315498163,1709079040778,-500.0,0.00023835,2]
[315498164,1709079040788,-500.0,0.00023835,2]
[315498165,1709079040797,-500.0,0.00023835,2]
[315498167,1709079040806,-38.69380484,0.00023835,2]
[315498177,1709079041261,-4450.21687928,0.00023835,4]
[315498178,1709079041379,-1801.68934857,0.00023835,4]
[315498179,1709079041399,-339.35228181,0.00023835,4]
[315498180,1709079041411,-1449.4,0.00023835,4]
[315498181,1709079041437,-290.86,0.00023835,4]
[315498182,1709079041520,-315.81013618,0.00023835,4]
[315498183,1709079041532,-417.95895655,0.00023835,4]
[315498188,1709079043727,-1788.16623084,0.00023835,4]
[315498189,1709079043751,-13889.77922177,0.00023835,4]
[315498190,1709079043761,-273.94269429,0.00023835,2]
[315498191,1709079043770,-500.0,0.00023835,2]
[315498192,1709079043779,-500.0,0.00023835,2]
[315498193,1709079043788,-473.80713962,0.00023835,2]
[315498194,1709079043798,-500.0,0.00023835,2]
[315498195,1709079043807,-510.93443177,0.00023835,2]
[315498196,1709079043818,-500.0,0.00023835,2]
[315498197,1709079043827,-500.0,0.00023835,2]
[315498198,1709079043837,-500.0,0.00023835,2]
[315498199,1709079043846,-500.0,0.00023835,2]
[315498200,1709079043855,-503.15010092,0.00023835,2]
[315498201,1709079043872,-9.25833513,0.00023835,2]
[315498202,1709079043881,-500.0,0.00023835,2]
[315498203,1709079043890,-60.76166487,0.00023835,2]
[315498204,1709079043903,-439.23833513,0.00023835,2]
[315498205,1709079043912,-500.0,0.00023835,2]
[315498207,1709079043921,-500.0,0.00023835,2]
[315498209,1709079043930,-500.0,0.00023835,2]
[315498210,1709079043940,-500.0,0.00023835,2]
[315498211,1709079043949,-500.0,0.00023835,2]
[315498212,1709079043959,-552.72028435,0.00023835,2]
[315498213,1709079043969,-500.0,0.00023835,2]
[315498214,1709079043978,-500.0,0.00023835,2]
[315498215,1709079043988,-500.0,0.00023835,2]
[315498216,1709079043997,-500.0,0.00023835,2]
[315498217,1709079044007,-500.0,0.00023835,2]
[315498218,1709079044017,-500.0,0.00023835,2]
[315498219,1709079044026,-500.0,0.00023835,2]
[315498221,1709079044036,-500.0,0.00023835,2]
[315498223,1709079044045,-500.0,0.00023835,2]
[315498225,1709079044054,-500.0,0.00023835,2]
[315498227,1709079044064,-500.0,0.00023835,2]
[315498229,1709079044073,-500.0,0.00023835,2]
[315498231,1709079044082,-500.0,0.00023835,2]
[315498233,1709079044090,-506.56950255,0.00023835,2]
[315498234,1709079044100,-508.47265903,0.00023835,2]
[315498235,1709079044109,-500.0,0.00023835,2]
[315498236,1709079044118,-500.0,0.00023835,2]
[315498237,1709079044128,-500.0,0.00023835,2]
[315498238,1709079044137,-506.14080975,0.00023835,2]
[315498239,1709079044147,-500.0,0.00023835,2]
[315498240,1709079044156,-500.0,0.00023835,2]
[315498241,1709079044168,-491.0498386,0.00023835,2]
[315498242,1709079044192,-8.9501614,0.00023835,2]
[315498243,1709079044202,-500.0,0.00023835,2]
[315498244,1709079044212,-500.0,0.00023835,2]
[315498245,1709079044222,-500.0,0.00023835,2]
[315498246,1709079044231,-576.2209515,0.00023835,2]
[315498247,1709079044241,-500.0,0.00023835,2]
[315498248,1709079044251,-500.0,0.00023835,2]
[315498249,1709079044260,-500.0,0.00023835,2]
[315498250,1709079044270,-500.0,0.00023835,2]
[315498251,1709079044279,-500.0,0.00023835,2]
[315498252,1709079044289,-500.0,0.00023835,2]
[315498253,1709079044298,-500.0,0.00023835,2]
[315498254,1709079044308,-500.0,0.00023835,2]
[315498255,1709079044317,-500.0,0.00023835,2]
[315498256,1709079044327,-119.61912264,0.00023835,2]
[315498257,1709079044346,-380.38087736,0.00023835,2]
[315498258,1709079044355,-500.0,0.00023835,2]
[315498259,1709079044365,-500.0,0.00023835,2]
[315498260,1709079044375,-500.0,0.00023835,2]
[315498261,1709079044384,-500.0,0.00023835,2]
[315498262,1709079044393,-500.0,0.00023835,2]
[315498263,1709079044403,-720.42,0.00023835,2]
[315498264,1709079044412,-720.42,0.00023835,2]
[315498265,1709079044423,-500.0,0.00023835,2]
[315498266,1709079044434,-720.42,0.00023835,2]
[315498267,1709079044444,-377.10912264,0.00023835,2]
[315498278,1709079045342,-122.89087736,0.00023835,2]
[315498280,1709079045352,-720.42,0.00023835,2]
[315498282,1709079045361,-720.42,0.00023835,2]
[315498284,1709079045373,-500.0,0.00023835,2]
[315498286,1709079045382,-720.42,0.00023835,2]
[315498288,1709079045392,-500.0,0.00023835,2]
[315498290,1709079045401,-500.0,0.00023835,2]
[315498292,1709079045410,-35.01444158,0.00023835,2]
[315498296,1709079045573,-685.40555842,0.00023835,2]
[315498297,1709079045583,-500.0,0.00023835,2]
[315498298,1709079045593,-346.25444158,0.00023835,2]
[315498299,1709079045632,-153.74555842,0.00023835,2]
[315498300,1709079045641,-416.04444158,0.00023835,2]
[315498301,1709079045692,-304.37555842,0.00023835,2]
[315498302,1709079045701,-500.0,0.00023835,2]
[315498303,1709079045710,-500.0,0.00023835,2]
[315498304,1709079045719,-720.42,0.00023835,2]
[315498305,1709079045729,-500.0,0.00023835,2]
[315498306,1709079045738,-355.803917,0.00023835,2]
[315498307,1709079045748,-720.42,0.00023835,2]
[315498309,1709079045757,-500.0,0.00023835,2]
[315498311,1709079045766,-720.42,0.00023835,2]
[315498313,1709079045775,-500.0,0.00023835,2]
[315498315,1709079045784,-537.13061598,0.00023835,2]
[315498317,1709079045794,-500.0,0.00023835,2]
[315498319,1709079045803,-500.0,0.00023835,2]
[315498321,1709079045812,-500.0,0.00023835,2]
[315498323,1709079045821,-500.0,0.00023835,2]
[315498325,1709079045830,-500.0,0.00023835,2]
[315498327,1709079045839,-500.0,0.00023835,2]
[315498329,1709079045848,-500.0,0.00023835,2]
[315498331,1709079045858,-545.94153501,0.00023835,2]
[315498333,1709079045867,-500.0,0.00023835,2]
[315498335,1709079045877,-156.73056188,0.00023835,2]
[315498337,1709079045886,-500.0,0.00023835,2]
[315498339,1709079045895,-500.0,0.00023835,2]
[315498341,1709079045905,-500.0,0.00023835,2]
[315498343,1709079045915,-500.0,0.00023835,2]
[315498345,1709079045925,-500.0,0.00023835,2]
[315498347,1709079045934,-500.0,0.00023835,2]
[315498349,1709079045943,-500.0,0.00023835,2]
[315498351,1709079045952,-522.03018914,0.00023835,2]
[315498353,1709079045961,-500.0,0.00023835,2]
[315498355,1709079045970,-500.0,0.00023835,2]
[315498357,1709079045979,-500.0,0.00023835,2]
[315498359,1709079045989,-500.0,0.00023835,2]
[315498361,1709079045998,-500.0,0.00023835,2]
[315498363,1709079046007,-500.0,0.00023835,2]
[315498365,1709079046016,-194.85991614,0.00023835,2]
[315498495,1709079063894,205.0,0.00023297,2]
[315498496,1709079064496,403.81,0.0002291,2]
[315498498,1709079151703,548.50236443,0.00022106,3]
[315498499,1709079154334,449.99,0.00022884,2]
[315498500,1709079177876,501673.01874933,0.0002291,2]
[315498501,1709079194643,951.42,0.00020966,2]
[315498502,1709079194888,951.42,0.0002323,2]
[315498503,1709079211626,177.9,0.00022835,2]
[315498504,1709079213086,177.9,0.00023383,2]
[315498505,1709079218059,2408.54,0.00022845,2]
[315498506,1709079245371,187.0,0.00023,2]
[315498507,1709079247555,250.0,0.00022822,2]
[315498508,1709079254814,737.6,0.00022812,2]
[315498509,1709079268554,373.98637479,0.00022978,2]
[315498510,1709079286178,200.0,0.00022804,2]
[315498511,1709079290137,2000.0,0.000228,2]
[315498512,1709079304004,250.0,0.000228,2]
[315498513,1709079341827,150.0,0.00022686,2]
[315498514,1709079365119,201.0,0.00023238,2]
[315498515,1709079406544,434148.10717836,0.00023,2]
[315498516,1709079423940,200.0,0.00023238,2]
[315498517,1709079426223,300.0,0.00023494,2]
[315498518,1709079436616,5505.3949,0.00023494,2]
[315498519,1709079482495,156.28518794,0.00023492,2]
[315498520,1709079482526,23900.0,0.00022775,2]
[315498521,1709079489919,152.41,0.00022942,2]
[315498522,1709079490289,152.41,0.00023022,2]
[315498523,1709079490707,152.41,0.00023102,2]
[315498524,1709079490916,152.41,0.00023181,2]
[315498525,1709079491150,152.41,0.00023261,2]
[315498526,1709079491375,152.41,0.00023341,2]
[315498527,1709079491613,152.41,0.0002342,2]
[315498528,1709079547361,657.08712149,0.00023499,2]
[315498529,1709079565455,169.71,0.00022711,2]
[315498530,1709079565877,169.71,0.00023165,2]
[315498531,1709079591501,2169.0,0.000235,3]
[315498532,1709079591529,193.79299589,0.00023461,2]
[315498533,1709079592971,300.0,0.00023097,2]
[315498534,1709079594344,2060.0,0.000235,3]
[315498535,1709079598410,3848.20272318,0.00022978,2]
[315498536,1709079635280,856.27,0.00020776,2]
[315498537,1709079635607,856.27,0.0002304,2]
[315498538,1709079664700,2007.11,0.00022691,2]
[315498539,1709079687164,250.0,0.00022678,2]
[315498540,1709079712818,200.0,0.00022678,2]
[315498541,1709079721615,163.0,0.00020937,2]
[315498542,1709079721879,163.0,0.00022033,2]
[315498543,1709079722171,163.0,0.00023129,2]
[315498544,1709079725013,201.0,0.00023205,2]
[315498545,1709079732650,409.92,0.00022691,2]
[315498546,1709079751688,2999.99,0.00023,2]
[315498547,1709079751735,6673.2413284,0.00022106,3]
[315498548,1709079754446,203.0,0.00023205,2]
[315498549,1709079755539,250.0,0.00022691,2]
[315498550,1709079758407,45155.4723633,0.00022941,7]
[315498551,1709079758734,3000.0,0.00023,2]
[315498552,1709079758878,159.0,0.00021237,2]
[315498553,1709079759171,3000.0,0.00023,2]
[315498554,1709079759622,3000.0,0.00023,2]
[315498555,1709079760069,3000.0,0.00023,2]
[315498556,1709079760547,189.88,0.00023,2]
[315498557,1709079761355,511.80953075,0.00022632,6]
[315498558,1709079762073,511.80953075,0.00022634,6]
[315498559,1709079762222,511.80953075,0.00022658,6]
[315498560,1709079762817,170.0,0.00021237,2]
[315498561,1709079763097,170.0,0.00022333,2]
[315498562,1709079763674,320.82958815,0.00023,2]
[315498563,1709079764023,170.0,0.00023429,2]
[315498564,1709079764113,1913.57502821,0.0002294,2]
[315498565,1709079765154,22203.82876458,0.00022684,6]
[315498566,1709079765221,1213.52145873,0.0002294,2]
[315498567,1709079765646,22203.82876458,0.00022657,6]
[315498568,1709079765981,22203.82876458,0.0002267,6]
[315498569,1709079766289,22203.82876458,0.00022655,6]
[315498570,1709079766933,511.80953075,0.00022658,6]
[315498571,1709079777743,153.0,0.00021237,2]
[315498572,1709079778033,153.0,0.00022333,2]
[315498573,1709079778284,153.0,0.00023429,2]
[315498574,1709079784389,300.0,0.00023427,2]
[315498575,1709079790473,2792.95,0.00022658,2]
[315498576,1709079790502,556203.79,0.000232,4]
[315498577,1709079793872,1042.53818806,0.00023499,2]
[315498578,1709079795021,1830.93812558,0.00022655,6]
[315498579,1709079795116,1830.93812558,0.00022692,6]
[315498580,1709079795203,1830.93812558,0.00022685,6]
[315498581,1709079795405,1830.93812558,0.00022644,6]
[315498582,1709079796466,18301.00628609,0.00022698,6]
[315498583,1709079796826,18301.00628609,0.00022679,6]
[315498584,1709079797188,18301.00628609,0.00022635,6]
[315498585,1709079797517,18301.00628609,0.0002269,6]
[315498586,1709079800351,10020.58,0.000232,4]
[315498587,1709079809101,979.379011,0.00023382,2]
[315498588,1709079812565,6860.0,0.000235,3]
[315498589,1709079813545,75595.62,0.000232,4]
[315498590,1709079815514,704.90207396,0.0002268,6]
[315498591,1709079816591,704.90207396,0.00022649,6]
[315498592,1709079816677,704.90207396,0.00022684,6]
[315498593,1709079816751,704.90207396,0.00022699,6]
[315498594,1709079822811,37356.78,0.000232,4]
[315498595,1709079823030,184.22,0.0002151,2]
[315498596,1709079823200,184.22,0.0002294,2]
[315498597,1709079824066,204.62942098,0.00023499,2]
[315498598,1709079829361,177.9,0.00022835,2]
[315498599,1709079830702,177.9,0.00023383,2]
[315498600,1709079833125,630.31619451,0.00023499,2]
[315498601,1709079833416,437.08143572,0.00023499,2]
[315498602,1709079833901,31577.03,0.000232,4]
[315498603,1709079839077,23922.39,0.000232,4]
[315498604,1709079844534,3107.15,0.000232,4]
[315498605,1709079844738,707.0,0.00023,2]
[315498606,1709079846640,708.0,0.00023,2]
[315498607,1709079857536,93960.62,0.000232,4]
[315498608,1709079867341,52891.83,0.000232,4]
[315498609,1709079873082,61501.81,0.000232,4]
[315498610,1709079873682,2741.0258,0.00023426,2]
[315498611,1709079875265,200.0,0.00021918,2]
[315498612,1709079878057,200.0,0.00022655,2]
[315498613,1709079882121,2000.0,0.00022651,2]
[315498614,1709079895840,2076.0,0.000234,3]
[315498615,1709079899121,60081.2475899,0.00022978,2]
[315498616,1709079907982,200.0,0.000235,2]
[315498617,1709079932431,6719.6817,0.000234,2]
[315498619,1709079943124,23900.0,0.00022694,2]
[315498620,1709079983300,616.19,0.00022658,2]
[315498621,1709079983995,3558.02,0.00022658,2]
[315498622,1709079990647,1500.0,0.00023,2]
[315498623,1709080027923,500.0,0.00022608,2]
[315498624,1709080035752,250.0,0.00022835,2]
[315498625,1709080036322,250.0,0.00022835,2]
[315498626,1709080037092,250.0,0.00023109,2]
[315498627,1709080039018,250.0,0.00023383,2]
[315498628,1709080040275,172.06,0.00022608,2]
[315498629,1709080045001,500.0,0.00022608,2]
[315498630,1709080051144,150.0,0.00022835,2]
[315498631,1709080052562,150.0,0.00023383,2]
[315498632,1709080057125,150.0,0.00022835,2]
[315498633,1709080069458,452.62,0.0002278,2]
[315498634,1709080069669,452.62,0.00022842,2]
[315498635,1709080069882,452.62,0.00022905,2]
[315498636,1709080070126,452.62,0.00022967,2]
[315498637,1709080070354,452.62,0.0002303,2]
[315498638,1709080070573,452.62,0.00023092,2]
[315498639,1709080070787,452.62,0.00023154,2]
[315498640,1709080071001,452.62,0.00023217,2]
[315498641,1709080071232,452.62,0.00023279,2]
[315498642,1709080071475,452.62,0.00023342,2]
[315498643,1709080071739,452.62,0.00023404,2]
[315498644,1709080071983,452.62,0.00023467,2]
[315498645,1709080084893,201.0,0.000232,2]
[315498646,1709080094405,1074.63,0.00020776,2]
[315498647,1709080094605,1074.63,0.0002304,2]
[315498648,1709080107299,150.0,0.00022605,2]
[315498649,1709080117381,2500.0,0.00023,2]
[315498650,1709080128669,171.14,0.0002261,2]
[315498651,1709080138424,918.59125208,0.000235,2]
[315498652,1709080138451,2279.8732,0.00023435,2]
[315498653,1709080144519,3393.7104,0.00023497,90]
[315498654,1709080150234,156.37,0.0002274,2]
[315498655,1709080166047,250.0,0.00022651,2]
[315498656,1709080172247,672.06,0.00022598,2]
[315498657,1709080193499,2362.3,0.00022598,2]
[315498658,1709080200747,250.0,0.00022598,2]
[315498659,1709080203655,2905.87421259,0.000235,2]
[315498660,1709080207838,200.0,0.000235,2]
[315498661,1709080217742,550.2,0.00022605,2]
[315498662,1709080218159,550.2,0.00022724,2]
[315498663,1709080218404,550.2,0.00022843,2]
[315498664,1709080218511,997.0,0.00023,6]
[315498665,1709080218609,550.2,0.00022962,2]
[315498666,1709080218876,550.2,0.0002308,2]
[315498667,1709080219083,550.2,0.00023199,2]
[315498668,1709080219282,550.2,0.00023318,2]
[315498669,1709080219496,550.2,0.00023437,2]
[315498670,1709080228920,24184.85763769,0.00022978,2]
[315498679,1709080231527,-155.0,0.00023525,3]
[315498680,1709080231538,-1042.53818806,0.00023526,2]
[315498681,1709080231548,-156.28518788,0.00023527,2]
[315498682,1709080231560,-198.55949191,0.00023529,2]
[315498683,1709080231573,-254.06050809,0.00023529,2]
[315498684,1709080231583,-217.01522844,0.00023531,2]
[315498685,1709080231594,-772.1311657,0.00023531,2]
[315498686,1709080231634,-1095.28784749,0.00023531,2]
[315498687,1709080231646,-442.23575837,0.00023531,2]
[315498688,1709080231656,-136.65282853,0.00023532,2]
[315498689,1709080231679,-637.73138218,0.00023532,2]
[315498690,1709080231708,-144.20704137,0.00023532,2]
[315498691,1709080231718,-150.0,0.00023534,2]
[315498692,1709080231727,-300.0,0.00023534,2]
[315498693,1709080231737,-214.8907,0.00023535,2]
[315498694,1709080231746,-276.0252,0.00023535,2]
[315498695,1709080231755,-987.7285,0.00023535,2]
[315498696,1709080231764,-2500.0,0.00023535,2]
[315498697,1709080231773,-550.2,0.00023556,2]
[315498698,1709080231782,-5997.98,0.0002356,2]
[315498699,1709080231791,-21634.78035239,0.0002356,2]
[315498700,1709080231804,-1881.901626,0.0002356,2]
[315498701,1709080231816,-326.43046132,0.0002356,2]
[315498702,1709080231836,-5941.50756029,0.0002356,2]
[315498703,1709080231846,-156.28518788,0.00023561,2]
[315498704,1709080231855,-704.59,0.00023561,2]
[315498705,1709080231865,-918.59125208,0.00023563,2]
[315498706,1709080231875,-2574.98,0.00023582,2]
[315498707,1709080231884,-452.62,0.00023592,2]
[315498709,1709080231893,-155.0,0.00023593,2]
[315498711,1709080231903,-156.28518788,0.00023596,2]
[315498713,1709080231912,-156100.0,0.00023597,2]
[315498714,1709080231921,-1000.0,0.000236,2]
[315498716,1709080231931,-302.78,0.000236,2]
[315498718,1709080231940,-26173.97294743,0.000236,2]
[315498719,1709080231949,-2458.30250163,0.00023601,2]
[315498720,1709080231962,-150.0,0.00023601,2]
[315498721,1709080231971,-2458.30250163,0.00023611,2]
[315498722,1709080231981,-45.32912401,0.00023617,2]
[315498723,1709080231994,-104.67087599,0.00023617,2]
[315498724,1709080232003,-169.71,0.00023619,2]
[315498725,1709080232012,-1537.7326218,0.00023622,2]
[315498726,1709080237531,-670.73103445,0.00023622,2]
[315498727,1709080237592,-249.83884538,0.00023622,2]
[315498728,1709080237601,-499.99,0.00023625,2]
[315498729,1709080237610,-183.96,0.00023625,3]
[315498730,1709080237619,-156.28518788,0.00023631,2]
[315498731,1709080237629,-2458.30250163,0.00023632,2]
[315498732,1709080237638,-249.03873906,0.00023633,2]
[315498733,1709080237648,-155.52830347,0.00023633,2]
[315498734,1709080237658,-447.25130358,0.00023633,2]
[315498735,1709080237681,-918.00154469,0.00023633,2]
[315498736,1709080237694,-791.90523971,0.00023633,2]
[315498737,1709080237704,-687.17303469,0.00023633,2]
[315498738,1709080237714,-1556.31441817,0.00023633,2]
[315498739,1709080237724,-204.30623802,0.00023633,2]
[315498740,1709080237733,-579.50375656,0.00023633,2]
[315498741,1709080237742,-437.08143572,0.00023633,2]
[315498742,1709080237752,-17553.10951606,0.00023633,2]
[315498743,1709080237764,-3744.66000001,0.00023633,2]
[315498744,1709080237799,-8800.54342842,0.00023633,2]
[315498745,1709080237809,-1131.25414511,0.00023634,2]
[315498746,1709080237818,-649.6379686,0.00023634,2]
[315498747,1709080237827,-203.93267501,0.00023634,2]
[315498749,1709080237837,-100000.0,0.00023635,2]
[315498751,1709080237846,-21648.4101,0.00023635,2]
[315498753,1709080237855,-4519.6033,0.00023635,2]
[315498755,1709080237865,-179.32723975,0.00023635,2]
[315498757,1709080237874,-467.52053165,0.00023635,2]
[315498759,1709080237883,-2458.30250163,0.00023642,2]
[315498761,1709080237892,-2458.30250163,0.00023652,2]
[315498763,1709080237901,-452.62,0.00023654,2]
[315498764,1709080237912,-530.94192447,0.00023657,2]
[315498766,1709080237921,-467.52053162,0.0002366,2]
[315498767,1709080237931,-2458.30250163,0.00023663,2]
[315498768,1709080237940,-156.28518788,0.00023666,2]
[315498769,1709080237949,-2458.30250163,0.00023673,2]
[315498770,1709080237959,-550.2,0.00023675,2]
[315498771,1709080237968,-2458.30250163,0.00023683,2]
[315498772,1709080237977,-179.32723974,0.00023685,2]
[315498773,1709080237986,-467.52053162,0.00023685,2]
[315498774,1709080237996,-150.0,0.00023687,2]
[315498775,1709080238005,-2458.30250163,0.00023694,2]
[315498776,1709080238015,-9785.19,0.000237,2]
[315498777,1709080238025,-14584.18,0.000237,2]
[315498778,1709080238034,-13646.71,0.000237,2]
[315498779,1709080238043,-156.28518788,0.000237,2]
[315498780,1709080238053,-2458.30250163,0.00023704,2]
[315498781,1709080238062,-800.0,0.00023707,2]